[Event "Titled Tuesday Blitz December 13 Early 2022"]
[White "Bethke, Richard"]
[Black "Avinash, Ramesh"]
[WhiteFideId "12959243"]
[BlackFideId "45018340"]
[WhiteElo "2369"]
[BlackElo "2264"]
[Result "0-1"]
[Round "02"]
[TimeControl "180+1"]
[Date "2022.12.14"]
[WhiteClock "0:00:02"]
[BlackClock "0:00:37"]

1. e4 {[%clk 0:03:00]}  e6 {[%clk 0:02:59]} 2. d4 {[%clk 0:03:00]}  d5 {[%clk 0:02:59]} 3. Nd2 {[%clk 0:03:00]}  Nf6 {[%clk 0:02:59]} 4. e5 {[%clk 0:03:00]}  Nfd7 {[%clk 0:03:00]} 5. Bd3 {[%clk 0:02:59]}  c5 {[%clk 0:03:00]} 6. c3 {[%clk 0:03:00]}  Nc6 {[%clk 0:03:01]} 7. Ne2 {[%clk 0:03:00]}  cxd4 {[%clk 0:02:59]} 8. cxd4 {[%clk 0:03:01]}  f6 {[%clk 0:03:00]} 9. exf6 {[%clk 0:02:58]}  Nxf6 {[%clk 0:03:00]} 10. O-O {[%clk 0:02:58]}  Bd6 {[%clk 0:03:01]} 11. Nf3 {[%clk 0:02:56]}  O-O {[%clk 0:03:01]} 12. Bf4 {[%clk 0:02:53]}  Bxf4 {[%clk 0:03:01]} 13. Nxf4 {[%clk 0:02:54]}  Ne4 {[%clk 0:03:02]} 14. Qc1 {[%clk 0:02:40]}  Ng5 {[%clk 0:03:00]} 15. Nxg5 {[%clk 0:02:37]}  Qxg5 {[%clk 0:03:00]} 16. Bxh7+ {[%clk 0:02:36]}  Kxh7 {[%clk 0:03:00]} 17. Nxe6 {[%clk 0:02:37]}  Qxc1 {[%clk 0:03:00]} 18. Nxf8+ {[%clk 0:02:37]}  Kg8 {[%clk 0:03:00]} 19. Raxc1 {[%clk 0:02:36]}  Kxf8 {[%clk 0:03:01]} 20. Rfe1 {[%clk 0:02:35]}  Bd7 {[%clk 0:02:45]} 21. Rc5 {[%clk 0:02:33]}  Kf7 {[%clk 0:02:30]} 22. Rxd5 {[%clk 0:02:28]}  Rd8 {[%clk 0:02:29]} 23. a3 {[%clk 0:02:19]}  Ne7 {[%clk 0:02:25]} 24. Rde5 {[%clk 0:02:19]}  Nc6 {[%clk 0:02:24]} 25. R5e4 {[%clk 0:01:39]}  Bf5 {[%clk 0:02:24]} 26. Rf4 {[%clk 0:01:39]}  Nxd4 {[%clk 0:02:23]} 27. g4 {[%clk 0:01:37]}  g5 {[%clk 0:02:21]} 28. Rxf5+ {[%clk 0:01:33]}  Nxf5 {[%clk 0:02:21]} 29. gxf5 {[%clk 0:01:34]}  Rd2 {[%clk 0:02:14]} 30. b4 {[%clk 0:01:34]}  Kf6 {[%clk 0:02:07]} 31. Kg2 {[%clk 0:01:17]}  Ra2 {[%clk 0:02:04]} 32. Re3 {[%clk 0:01:12]}  Kxf5 {[%clk 0:02:04]} 33. Kg3 {[%clk 0:01:12]}  Ra1 {[%clk 0:01:53]} 34. Rc3 {[%clk 0:01:01]}  Rg1+ {[%clk 0:01:47]} 35. Kf3 {[%clk 0:01:00]}  Ra1 {[%clk 0:01:47]} 36. h3 {[%clk 0:00:57]}  b6 {[%clk 0:01:43]} 37. Rd3 {[%clk 0:00:57]}  Ra2 {[%clk 0:01:43]} 38. b5 {[%clk 0:00:42]}  Ra1 {[%clk 0:01:38]} 39. Kg3 {[%clk 0:00:35]}  Ra2 {[%clk 0:01:38]} 40. Rd5+ {[%clk 0:00:34]}  Kf6 {[%clk 0:01:38]} 41. Rd3 {[%clk 0:00:32]}  Kf5 {[%clk 0:01:33]} 42. f3 {[%clk 0:00:32]}  Ra1 {[%clk 0:01:33]} 43. Rd5+ {[%clk 0:00:29]}  Kf6 {[%clk 0:01:30]} 44. Kg4 {[%clk 0:00:29]}  Rg1+ {[%clk 0:01:25]} 45. Kh5 {[%clk 0:00:28]}  Rg3 {[%clk 0:01:26]} 46. h4 {[%clk 0:00:14]}  gxh4 {[%clk 0:01:22]} 47. f4 {[%clk 0:00:13]}  h3 {[%clk 0:01:18]} 48. Rd2 {[%clk 0:00:10]}  Rg2 {[%clk 0:01:12]} 49. Rd1 {[%clk 0:00:08]}  Kf5 {[%clk 0:01:10]} 50. Kh4 {[%clk 0:00:03]}  h2 {[%clk 0:01:10]} 51. Rh1 {[%clk 0:00:01]}  Kxf4 {[%clk 0:01:07]} 52. Kh3 {[%clk 0:00:02]}  Ra2 {[%clk 0:00:58]} 53. a4 {[%clk 0:00:02]}  Ke4 {[%clk 0:00:58]} 54. Re1+ {[%clk 0:00:02]}  Kd5 {[%clk 0:00:58]} 55. Rd1+ {[%clk 0:00:02]}  Kc5 {[%clk 0:00:58]} 56. Kg3 {[%clk 0:00:02]}  Kb4 {[%clk 0:00:58]} 57. Rd4+ {[%clk 0:00:02]}  Ka5 {[%clk 0:00:54]} 58. Rh4 {[%clk 0:00:03]}  Rb2 {[%clk 0:00:52]} 59. Kf3 {[%clk 0:00:02]}  Ra2 {[%clk 0:00:40]} 60. Rh7 {[%clk 0:00:01]}  Rxa4 {[%clk 0:00:37]} 61. Rxa7+ {[%clk 0:00:02]}  Kxb5 {[%clk 0:00:38]} 62. Rh7 {[%clk 0:00:02]}  Ra2 {[%clk 0:00:39]} 63. Ke3 {[%clk 0:00:02]}  Kb4 {[%clk 0:00:37]} 64. Kd3 {[%clk 0:00:02]}  b5 {[%clk 0:00:37]} 65. Rh4+ {[%clk 0:00:01]}  Kb3 {[%clk 0:00:37]} 66. Rh3 {[%clk 0:00:02]}  b4 {[%clk 0:00:37]} 67. Kd4+ {[%clk 0:00:02]}  Ka4 {[%clk 0:00:37]} 68. Kc4 {[%clk 0:00:02]}  Rc2+ {[%clk 0:00:37]} 69. Kd3 {[%clk 0:00:02]}  Rc3+ {[%clk 0:00:37]} 0-1


[Site "https://www.chess.com"]

[Event "Titled Tuesday Blitz December 13 Early 2022"]
[White "Bettalli, Francesco"]
[Black "Seifert, Henryk"]
[WhiteFideId "2816453"]
[BlackFideId "1100963"]
[WhiteElo "2216"]
[BlackElo "2120"]
[Result "1-0"]
[Round "02"]
[TimeControl "180+1"]
[Date "2022.12.14"]
[WhiteClock "0:01:39"]
[BlackClock "0:00:05"]

1. d4 {[%clk 0:03:00]}  d5 {[%clk 0:02:59]} 2. Nf3 {[%clk 0:03:01]}  c6 {[%clk 0:02:57]} 3. Bf4 {[%clk 0:02:58]}  Nf6 {[%clk 0:02:56]} 4. e3 {[%clk 0:02:59]}  Bf5 {[%clk 0:02:55]} 5. c4 {[%clk 0:02:58]}  e6 {[%clk 0:02:55]} 6. Nc3 {[%clk 0:02:58]}  Nbd7 {[%clk 0:02:55]} 7. Qb3 {[%clk 0:02:58]}  Qb6 {[%clk 0:02:51]} 8. c5 {[%clk 0:02:59]}  Qxb3 {[%clk 0:02:49]} 9. axb3 {[%clk 0:03:00]}  a6 {[%clk 0:02:42]} 10. b4 {[%clk 0:02:59]}  Rc8 {[%clk 0:02:40]} 11. Nd2 {[%clk 0:02:59]}  Nh5 {[%clk 0:02:27]} 12. Nb3 {[%clk 0:02:57]}  Nxf4 {[%clk 0:02:25]} 13. exf4 {[%clk 0:02:58]}  Be7 {[%clk 0:02:08]} 14. Na5 {[%clk 0:02:58]}  Rc7 {[%clk 0:02:04]} 15. Kd2 {[%clk 0:02:51]}  O-O {[%clk 0:02:03]} 16. f3 {[%clk 0:02:46]}  f6 {[%clk 0:02:00]} 17. g4 {[%clk 0:02:46]}  Bg6 {[%clk 0:02:00]} 18. Re1 {[%clk 0:02:45]}  Bf7 {[%clk 0:01:50]} 19. Bd3 {[%clk 0:02:43]}  Re8 {[%clk 0:01:47]} 20. Ne2 {[%clk 0:02:24]}  Bf8 {[%clk 0:01:43]} 21. Ng3 {[%clk 0:02:22]}  Bg6 {[%clk 0:01:36]} 22. f5 {[%clk 0:02:21]}  exf5 {[%clk 0:01:25]} 23. Bxf5 {[%clk 0:02:18]}  Rxe1 {[%clk 0:01:04]} 24. Rxe1 {[%clk 0:02:17]}  Bf7 {[%clk 0:00:46]} 25. h4 {[%clk 0:02:04]}  g6 {[%clk 0:00:46]} 26. Bd3 {[%clk 0:02:02]}  Bh6+ {[%clk 0:00:26]} 27. Kc3 {[%clk 0:02:02]}  Kf8 {[%clk 0:00:25]} 28. Ne2 {[%clk 0:01:52]}  Be3 {[%clk 0:00:21]} 29. f4 {[%clk 0:01:43]}  Bf2 {[%clk 0:00:19]} 30. Rh1 {[%clk 0:01:43]}  h5 {[%clk 0:00:15]} 31. gxh5 {[%clk 0:01:39]}  gxh5 {[%clk 0:00:16]} 32. Rh2 {[%clk 0:01:39]}  Be1+ {[%clk 0:00:13]} 33. Kb3 {[%clk 0:01:38]}  Be6 {[%clk 0:00:06]} 34. f5 {[%clk 0:01:38]}  Bf7 {[%clk 0:00:05]} 35. Nf4 {[%clk 0:01:39]} 1-0


[Site "https://www.chess.com"]

[Event "Titled Tuesday Blitz December 13 Early 2022"]
[White "Chernomordik, Pavel"]
[Black "Fedoseev, Vladimir"]
[WhiteFideId "2804530"]
[BlackFideId "24130737"]
[WhiteElo "2193"]
[BlackElo "2733"]
[Result "0-1"]
[Round "02"]
[TimeControl "180+1"]
[Date "2022.12.14"]
[WhiteClock "0:00:01"]
[BlackClock "0:00:27"]

1. e4 {[%clk 0:03:00]}  c5 {[%clk 0:02:59]} 2. Nc3 {[%clk 0:03:00]}  d6 {[%clk 0:02:59]} 3. f4 {[%clk 0:02:59]}  Nc6 {[%clk 0:02:58]} 4. Nf3 {[%clk 0:02:58]}  a6 {[%clk 0:02:58]} 5. g3 {[%clk 0:02:54]}  Bg4 {[%clk 0:02:54]} 6. h3 {[%clk 0:02:52]}  Bxf3 {[%clk 0:02:54]} 7. Qxf3 {[%clk 0:02:52]}  Nd4 {[%clk 0:02:55]} 8. Qd1 {[%clk 0:02:50]}  e6 {[%clk 0:02:55]} 9. Bg2 {[%clk 0:02:49]}  Ne7 {[%clk 0:02:49]} 10. O-O {[%clk 0:02:46]}  Nec6 {[%clk 0:02:49]} 11. d3 {[%clk 0:02:44]}  Be7 {[%clk 0:02:48]} 12. Ne2 {[%clk 0:02:39]}  Rc8 {[%clk 0:02:44]} 13. c3 {[%clk 0:02:38]}  Nxe2+ {[%clk 0:02:40]} 14. Qxe2 {[%clk 0:02:38]}  O-O {[%clk 0:02:41]} 15. Be3 {[%clk 0:02:34]}  d5 {[%clk 0:02:38]} 16. Bf2 {[%clk 0:02:32]}  d4 {[%clk 0:02:37]} 17. c4 {[%clk 0:02:28]}  e5 {[%clk 0:02:37]} 18. Be1 {[%clk 0:02:22]}  b5 {[%clk 0:02:32]} 19. Rc1 {[%clk 0:02:15]}  Rb8 {[%clk 0:02:31]} 20. b3 {[%clk 0:02:00]}  Qd6 {[%clk 0:02:24]} 21. h4 {[%clk 0:01:57]}  Bd8 {[%clk 0:02:18]} 22. Bh3 {[%clk 0:01:54]}  Ba5 {[%clk 0:02:15]} 23. Bxa5 {[%clk 0:01:40]}  Nxa5 {[%clk 0:02:16]} 24. fxe5 {[%clk 0:01:40]}  Qxe5 {[%clk 0:02:13]} 25. Kg2 {[%clk 0:01:40]}  bxc4 {[%clk 0:02:13]} 26. bxc4 {[%clk 0:01:38]}  g6 {[%clk 0:02:12]} 27. Rb1 {[%clk 0:01:32]}  Nc6 {[%clk 0:02:11]} 28. Bd7 {[%clk 0:01:30]}  Ne7 {[%clk 0:02:00]} 29. Qf3 {[%clk 0:01:24]}  f6 {[%clk 0:01:57]} 30. Qg4 {[%clk 0:01:21]}  Kf7 {[%clk 0:01:51]} 31. Qf3 {[%clk 0:01:07]}  Rfd8 {[%clk 0:01:42]} 32. Ba4 {[%clk 0:00:56]}  Kg7 {[%clk 0:01:40]} 33. Qf2 {[%clk 0:00:46]}  Rf8 {[%clk 0:01:30]} 34. Qf4 {[%clk 0:00:37]}  Rb4 {[%clk 0:01:00]} 35. Rxb4 {[%clk 0:00:23]}  cxb4 {[%clk 0:01:01]} 36. Qxe5 {[%clk 0:00:19]}  fxe5 {[%clk 0:01:01]} 37. Rxf8 {[%clk 0:00:19]}  Kxf8 {[%clk 0:01:01]} 38. c5 {[%clk 0:00:18]}  Nc8 {[%clk 0:00:50]} 39. Bd7 {[%clk 0:00:16]}  Na7 {[%clk 0:00:50]} 40. Kf3 {[%clk 0:00:14]}  Ke7 {[%clk 0:00:49]} 41. Ba4 {[%clk 0:00:11]}  h5 {[%clk 0:00:45]} 42. g4 {[%clk 0:00:10]}  Kd8 {[%clk 0:00:33]} 43. gxh5 {[%clk 0:00:08]}  gxh5 {[%clk 0:00:33]} 44. Ke2 {[%clk 0:00:06]}  Nc8 {[%clk 0:00:34]} 45. Kd2 {[%clk 0:00:06]}  Ne7 {[%clk 0:00:32]} 46. Bd1 {[%clk 0:00:05]}  Ng6 {[%clk 0:00:33]} 47. Bxh5 {[%clk 0:00:04]}  Nxh4 {[%clk 0:00:33]} 48. Kc2 {[%clk 0:00:04]}  Ng2 {[%clk 0:00:30]} 49. Kb3 {[%clk 0:00:03]}  Nf4 {[%clk 0:00:30]} 50. Bf7 {[%clk 0:00:02]}  Nxd3 {[%clk 0:00:28]} 51. Kc4 {[%clk 0:00:01]}  Nf2 {[%clk 0:00:28]} 52. Kxb4 {[%clk 0:00:01]}  Nxe4 {[%clk 0:00:27]} 0-1


[Site "https://www.chess.com"]

[Event "Titled Tuesday Blitz December 13 Early 2022"]
[White "Chernov, Mikhail"]
[Black "Kriti Mayur Patel"]
[WhiteFideId "24143170"]
[BlackFideId "35061780"]
[WhiteElo "2113"]
[BlackElo "1306"]
[Result "0-1"]
[Round "02"]
[TimeControl "180+1"]
[Date "2022.12.14"]
[WhiteClock "0:00:55"]
[BlackClock "0:02:21"]

1. d4 {[%clk 0:03:00]}  d5 {[%clk 0:02:59]} 2. Nc3 {[%clk 0:03:01]}  Nf6 {[%clk 0:02:57]} 3. Bf4 {[%clk 0:03:01]}  Bf5 {[%clk 0:02:57]} 4. e3 {[%clk 0:03:01]}  a6 {[%clk 0:02:58]} 5. Nf3 {[%clk 0:03:01]}  e6 {[%clk 0:02:58]} 6. Ne5 {[%clk 0:03:01]}  Nbd7 {[%clk 0:02:58]} 7. g4 {[%clk 0:03:00]}  Be4 {[%clk 0:02:55]} 8. f3 {[%clk 0:02:59]}  Bg6 {[%clk 0:02:55]} 9. h4 {[%clk 0:02:58]}  h5 {[%clk 0:02:53]} 10. Nxg6 {[%clk 0:02:57]}  fxg6 {[%clk 0:02:52]} 11. Qd3 {[%clk 0:02:26]}  Kf7 {[%clk 0:02:46]} 12. O-O-O {[%clk 0:02:21]}  c5 {[%clk 0:02:46]} 13. dxc5 {[%clk 0:02:07]}  Nxc5 {[%clk 0:02:43]} 14. Qe2 {[%clk 0:01:57]}  b5 {[%clk 0:02:43]} 15. g5 {[%clk 0:01:51]}  Nfd7 {[%clk 0:02:38]} 16. Bh3 {[%clk 0:01:45]}  b4 {[%clk 0:02:32]} 17. Nxd5 {[%clk 0:01:43]}  exd5 {[%clk 0:02:29]} 18. Rxd5 {[%clk 0:01:44]}  Rc8 {[%clk 0:02:29]} 19. Rhd1 {[%clk 0:01:39]}  b3 {[%clk 0:02:25]} 20. axb3 {[%clk 0:01:15]}  Qa5 {[%clk 0:02:24]} 21. Bxd7 {[%clk 0:00:59]}  Nxb3+ {[%clk 0:02:21]} 22. Kb1 {[%clk 0:00:55]}  Qa1# {[%clk 0:02:21]} 0-1


[Site "https://www.chess.com"]

[Event "Titled Tuesday Blitz December 13 Early 2022"]
[White "Chigaev, Maksim"]
[Black "Thiel, Thomas"]
[WhiteFideId "4108116"]
[BlackFideId "4615964"]
[WhiteElo "2542"]
[BlackElo "2220"]
[Result "1-0"]
[Round "02"]
[TimeControl "180+1"]
[Date "2022.12.14"]
[WhiteClock "0:00:07"]
[BlackClock "0:00:04"]

1. e4 {[%clk 0:03:00]}  d5 {[%clk 0:02:59]} 2. exd5 {[%clk 0:03:00]}  Nf6 {[%clk 0:02:57]} 3. Nc3 {[%clk 0:03:01]}  Nxd5 {[%clk 0:02:57]} 4. Bc4 {[%clk 0:02:58]}  Nb6 {[%clk 0:02:56]} 5. Bb3 {[%clk 0:02:56]}  Nc6 {[%clk 0:02:56]} 6. Nf3 {[%clk 0:02:46]}  Bf5 {[%clk 0:02:55]} 7. d3 {[%clk 0:02:45]}  e6 {[%clk 0:02:55]} 8. a3 {[%clk 0:02:45]}  Be7 {[%clk 0:02:55]} 9. h3 {[%clk 0:02:45]}  O-O {[%clk 0:02:54]} 10. O-O {[%clk 0:02:46]}  Bg6 {[%clk 0:02:50]} 11. Re1 {[%clk 0:02:47]}  Bh5 {[%clk 0:02:48]} 12. Be3 {[%clk 0:02:35]}  Bf6 {[%clk 0:02:39]} 13. Rb1 {[%clk 0:02:27]}  Nd4 {[%clk 0:02:35]} 14. g4 {[%clk 0:02:23]}  Bg6 {[%clk 0:02:31]} 15. Nxd4 {[%clk 0:02:19]}  Bxd4 {[%clk 0:02:31]} 16. Qf3 {[%clk 0:02:19]}  c6 {[%clk 0:02:28]} 17. Ne4 {[%clk 0:02:13]}  Bxe3 {[%clk 0:02:23]} 18. fxe3 {[%clk 0:02:11]}  Nd5 {[%clk 0:02:22]} 19. Ng3 {[%clk 0:01:52]}  Qf6 {[%clk 0:02:18]} 20. Qxf6 {[%clk 0:01:46]}  gxf6 {[%clk 0:02:13]} 21. Kf2 {[%clk 0:01:41]}  Ne7 {[%clk 0:02:01]} 22. Rg1 {[%clk 0:01:37]}  Kh8 {[%clk 0:01:59]} 23. Rbf1 {[%clk 0:01:33]}  f5 {[%clk 0:01:58]} 24. g5 {[%clk 0:01:30]}  Nd5 {[%clk 0:01:51]} 25. Ke2 {[%clk 0:01:21]}  h6 {[%clk 0:01:36]} 26. e4 {[%clk 0:01:07]}  fxe4 {[%clk 0:01:32]} 27. dxe4 {[%clk 0:01:00]}  Nc7 {[%clk 0:01:30]} 28. gxh6 {[%clk 0:00:50]}  Kh7 {[%clk 0:01:29]} 29. h4 {[%clk 0:00:50]}  Kxh6 {[%clk 0:01:28]} 30. h5 {[%clk 0:00:51]}  Bh7 {[%clk 0:01:27]} 31. Rf6+ {[%clk 0:00:45]}  Kg7 {[%clk 0:01:20]} 32. Rgf1 {[%clk 0:00:41]}  Nb5 {[%clk 0:01:09]} 33. Ke3 {[%clk 0:00:32]}  c5 {[%clk 0:00:57]} 34. h6+ {[%clk 0:00:31]}  Kg8 {[%clk 0:00:55]} 35. c3 {[%clk 0:00:30]}  Rad8 {[%clk 0:00:49]} 36. a4 {[%clk 0:00:24]}  Nd6 {[%clk 0:00:48]} 37. e5 {[%clk 0:00:19]}  Nf5+ {[%clk 0:00:46]} 38. Nxf5 {[%clk 0:00:15]}  Bxf5 {[%clk 0:00:47]} 39. Rg1+ {[%clk 0:00:15]}  Kh8 {[%clk 0:00:47]} 40. Rg7 {[%clk 0:00:16]}  Bg6 {[%clk 0:00:43]} 41. Bxe6 {[%clk 0:00:14]}  Rde8 {[%clk 0:00:33]} 42. Bxf7 {[%clk 0:00:07]}  Bxf7 {[%clk 0:00:32]} 43. Rfxf7 {[%clk 0:00:07]}  Rxf7 {[%clk 0:00:32]} 44. Rxf7 {[%clk 0:00:08]}  Rxe5+ {[%clk 0:00:30]} 45. Kf4 {[%clk 0:00:09]}  Re6 {[%clk 0:00:27]} 46. Rxb7 {[%clk 0:00:09]}  a6 {[%clk 0:00:22]} 47. h7 {[%clk 0:00:09]}  Re2 {[%clk 0:00:20]} 48. Kf3 {[%clk 0:00:09]}  Rh2 {[%clk 0:00:18]} 49. Ke4 {[%clk 0:00:09]}  c4 {[%clk 0:00:15]} 50. Kd5 {[%clk 0:00:08]}  Rh4 {[%clk 0:00:11]} 51. a5 {[%clk 0:00:07]}  Rh5+ {[%clk 0:00:08]} 52. Kxc4 {[%clk 0:00:08]}  Rxa5 {[%clk 0:00:05]} 53. Rb8+ {[%clk 0:00:06]}  Kxh7 {[%clk 0:00:04]} 54. b4 {[%clk 0:00:07]} 1-0


[Site "https://www.chess.com"]

[Event "Titled Tuesday Blitz December 13 Early 2022"]
[White "Ciuffoletti, Paolo"]
[Black "Le Ruyet, Leopold"]
[WhiteFideId "807630"]
[BlackFideId "645923"]
[WhiteElo "2143"]
[BlackElo "2276"]
[Result "1-0"]
[Round "02"]
[TimeControl "180+1"]
[Date "2022.12.14"]
[WhiteClock "0:00:44"]
[BlackClock "0:00:39"]

1. e4 {[%clk 0:03:00]}  d6 {[%clk 0:02:59]} 2. d4 {[%clk 0:02:59]}  Nf6 {[%clk 0:02:59]} 3. Nc3 {[%clk 0:02:59]}  e5 {[%clk 0:02:58]} 4. dxe5 {[%clk 0:02:58]}  dxe5 {[%clk 0:02:59]} 5. Qxd8+ {[%clk 0:02:57]}  Kxd8 {[%clk 0:02:59]} 6. Bg5 {[%clk 0:02:58]}  Be6 {[%clk 0:02:44]} 7. O-O-O+ {[%clk 0:02:52]}  Kc8 {[%clk 0:02:38]} 8. f4 {[%clk 0:02:42]}  exf4 {[%clk 0:02:37]} 9. Nf3 {[%clk 0:02:41]}  Nbd7 {[%clk 0:02:33]} 10. Nd4 {[%clk 0:02:28]}  Bg4 {[%clk 0:02:28]} 11. Re1 {[%clk 0:02:21]}  Bc5 {[%clk 0:02:17]} 12. Nf5 {[%clk 0:01:58]}  Bxf5 {[%clk 0:01:58]} 13. exf5 {[%clk 0:01:57]}  Be3+ {[%clk 0:01:58]} 14. Kb1 {[%clk 0:01:56]}  Bd2 {[%clk 0:01:54]} 15. Re7 {[%clk 0:01:43]}  Rf8 {[%clk 0:01:18]} 16. Bc4 {[%clk 0:01:31]}  Bxc3 {[%clk 0:01:08]} 17. bxc3 {[%clk 0:01:29]}  Nb6 {[%clk 0:01:05]} 18. Bxf7 {[%clk 0:01:24]}  Nbd5 {[%clk 0:01:00]} 19. Be6+ {[%clk 0:01:09]}  Kb8 {[%clk 0:00:54]} 20. Rxg7 {[%clk 0:01:08]}  Nxc3+ {[%clk 0:00:53]} 21. Kb2 {[%clk 0:01:04]}  Na4+ {[%clk 0:00:49]} 22. Ka3 {[%clk 0:01:01]}  Nc5 {[%clk 0:00:48]} 23. Bxf6 {[%clk 0:00:58]}  b5 {[%clk 0:00:42]} 24. Be7 {[%clk 0:00:52]}  Nxe6 {[%clk 0:00:40]} 25. fxe6 {[%clk 0:00:52]}  Rf5 {[%clk 0:00:37]} 26. Rg8+ {[%clk 0:00:45]}  Kb7 {[%clk 0:00:38]} 27. Rxa8 {[%clk 0:00:45]}  Kxa8 {[%clk 0:00:39]} 28. Re1 {[%clk 0:00:44]} 1-0


[Site "https://www.chess.com"]

[Event "Titled Tuesday Blitz December 13 Early 2022"]
[White "Danielyan, Vahe"]
[Black "Lorenzo De La Riva, Lazaro"]
[WhiteFideId "13304828"]
[BlackFideId "2268809"]
[WhiteElo "2423"]
[BlackElo "2294"]
[Result "1-0"]
[Round "02"]
[TimeControl "180+1"]
[Date "2022.12.14"]
[WhiteClock "0:01:30"]
[BlackClock "0:00:02"]

1. e4 {[%clk 0:03:00]}  c5 {[%clk 0:02:59]} 2. Nf3 {[%clk 0:02:55]}  Nc6 {[%clk 0:02:58]} 3. Bb5 {[%clk 0:02:55]}  e5 {[%clk 0:02:57]} 4. O-O {[%clk 0:02:51]}  Bd6 {[%clk 0:02:58]} 5. c3 {[%clk 0:02:49]}  a6 {[%clk 0:02:57]} 6. Bxc6 {[%clk 0:02:49]}  dxc6 {[%clk 0:02:51]} 7. h3 {[%clk 0:02:46]}  Ne7 {[%clk 0:02:38]} 8. Na3 {[%clk 0:02:42]}  b5 {[%clk 0:02:31]} 9. Nc2 {[%clk 0:02:40]}  O-O {[%clk 0:02:25]} 10. a4 {[%clk 0:02:34]}  Bb7 {[%clk 0:02:21]} 11. d4 {[%clk 0:02:31]}  cxd4 {[%clk 0:02:14]} 12. cxd4 {[%clk 0:02:30]}  exd4 {[%clk 0:02:15]} 13. Ncxd4 {[%clk 0:02:30]}  c5 {[%clk 0:02:13]} 14. Nf5 {[%clk 0:02:26]}  Nxf5 {[%clk 0:02:12]} 15. exf5 {[%clk 0:02:27]}  Qc7 {[%clk 0:01:52]} 16. f6 {[%clk 0:02:24]}  Rfd8 {[%clk 0:01:49]} 17. Qb3 {[%clk 0:02:16]}  c4 {[%clk 0:01:40]} 18. Qe3 {[%clk 0:02:16]}  g6 {[%clk 0:01:26]} 19. axb5 {[%clk 0:01:53]}  axb5 {[%clk 0:01:23]} 20. Rxa8 {[%clk 0:01:54]}  Rxa8 {[%clk 0:01:19]} 21. Re1 {[%clk 0:01:52]}  Bf8 {[%clk 0:01:09]} 22. Ne5 {[%clk 0:01:38]}  Re8 {[%clk 0:00:34]} 23. Qg3 {[%clk 0:01:37]}  b4 {[%clk 0:00:24]} 24. Bf4 {[%clk 0:01:37]}  Qc5 {[%clk 0:00:20]} 25. Kh2 {[%clk 0:01:36]}  c3 {[%clk 0:00:16]} 26. bxc3 {[%clk 0:01:36]}  bxc3 {[%clk 0:00:17]} 27. Nxg6 {[%clk 0:01:33]}  hxg6 {[%clk 0:00:08]} 28. Rxe8 {[%clk 0:01:33]}  c2 {[%clk 0:00:07]} 29. Bd6 {[%clk 0:01:29]}  Qc6 {[%clk 0:00:03]} 30. Rxf8+ {[%clk 0:01:29]}  Kh7 {[%clk 0:00:02]} 31. Qh4# {[%clk 0:01:30]} 1-0


[Site "https://www.chess.com"]

[Event "Titled Tuesday Blitz December 13 Early 2022"]
[White "Deac, Bogdan-Daniel"]
[Black "Mustafayev, Farid"]
[WhiteFideId "1226380"]
[BlackFideId "13408771"]
[WhiteElo "2649"]
[BlackElo "2192"]
[Result "1-0"]
[Round "02"]
[TimeControl "180+1"]
[Date "2022.12.13"]
[WhiteClock "0:00:05"]
[BlackClock "0:00:11"]

1. b3 {[%clk 0:03:00]}  d5 {[%clk 0:02:37]} 2. Bb2 {[%clk 0:03:00]}  c5 {[%clk 0:02:37]} 3. e3 {[%clk 0:03:00]}  Nc6 {[%clk 0:02:37]} 4. Bb5 {[%clk 0:02:59]}  Nf6 {[%clk 0:02:37]} 5. Nf3 {[%clk 0:02:59]}  e6 {[%clk 0:02:38]} 6. Bxc6+ {[%clk 0:02:57]}  bxc6 {[%clk 0:02:38]} 7. Ne5 {[%clk 0:02:57]}  Qc7 {[%clk 0:02:38]} 8. O-O {[%clk 0:02:57]}  Bd6 {[%clk 0:02:38]} 9. f4 {[%clk 0:02:58]}  Rb8 {[%clk 0:02:39]} 10. Qe1 {[%clk 0:02:50]}  O-O {[%clk 0:02:27]} 11. d3 {[%clk 0:02:50]}  Ba6 {[%clk 0:01:57]} 12. Qg3 {[%clk 0:02:41]}  Ne8 {[%clk 0:01:51]} 13. Nd2 {[%clk 0:02:35]}  f6 {[%clk 0:01:52]} 14. Nef3 {[%clk 0:02:34]}  c4 {[%clk 0:01:49]} 15. dxc4 {[%clk 0:02:29]}  dxc4 {[%clk 0:01:49]} 16. Rfd1 {[%clk 0:02:29]}  Qe7 {[%clk 0:01:43]} 17. Nd4 {[%clk 0:02:16]}  Rb6 {[%clk 0:01:37]} 18. Ne4 {[%clk 0:02:14]}  c5 {[%clk 0:01:31]} 19. Nf3 {[%clk 0:02:11]}  Bb7 {[%clk 0:01:28]} 20. Ned2 {[%clk 0:02:07]}  cxb3 {[%clk 0:01:27]} 21. axb3 {[%clk 0:02:06]}  Bb8 {[%clk 0:01:21]} 22. Nc4 {[%clk 0:02:01]}  Rc6 {[%clk 0:01:18]} 23. Na5 {[%clk 0:01:38]}  Rc8 {[%clk 0:01:19]} 24. Nxb7 {[%clk 0:01:37]}  Qxb7 {[%clk 0:01:20]} 25. Qh3 {[%clk 0:01:31]}  Qc6 {[%clk 0:01:14]} 26. Nd2 {[%clk 0:01:27]}  Nc7 {[%clk 0:01:07]} 27. Nc4 {[%clk 0:01:27]}  Nd5 {[%clk 0:01:06]} 28. Na5 {[%clk 0:01:11]}  Qe8 {[%clk 0:01:05]} 29. f5 {[%clk 0:01:05]}  Nc7 {[%clk 0:00:57]} 30. Nc4 {[%clk 0:01:04]}  Nd5 {[%clk 0:00:43]} 31. fxe6 {[%clk 0:00:59]}  Nb6 {[%clk 0:00:44]} 32. Nd6 {[%clk 0:00:48]}  Bxd6 {[%clk 0:00:44]} 33. Rxd6 {[%clk 0:00:49]}  Qe7 {[%clk 0:00:43]} 34. Rad1 {[%clk 0:00:41]}  Rfd8 {[%clk 0:00:42]} 35. Qg3 {[%clk 0:00:34]}  Rxd6 {[%clk 0:00:37]} 36. Rxd6 {[%clk 0:00:30]}  Rd8 {[%clk 0:00:34]} 37. Rxd8+ {[%clk 0:00:28]}  Qxd8 {[%clk 0:00:35]} 38. h3 {[%clk 0:00:28]}  Nd5 {[%clk 0:00:28]} 39. Qf3 {[%clk 0:00:23]}  Qd6 {[%clk 0:00:28]} 40. Qe4 {[%clk 0:00:13]}  Nc7 {[%clk 0:00:18]} 41. e7 {[%clk 0:00:11]}  Kf7 {[%clk 0:00:18]} 42. Qxh7 {[%clk 0:00:10]}  Qxe7 {[%clk 0:00:19]} 43. Qd3 {[%clk 0:00:09]}  Qe6 {[%clk 0:00:19]} 44. e4 {[%clk 0:00:09]}  Kg8 {[%clk 0:00:18]} 45. Ba3 {[%clk 0:00:07]}  Qb6 {[%clk 0:00:18]} 46. Qc4+ {[%clk 0:00:06]}  Ne6 {[%clk 0:00:19]} 47. Bc1 {[%clk 0:00:05]}  Qc6 {[%clk 0:00:19]} 48. Be3 {[%clk 0:00:05]}  Kf8 {[%clk 0:00:19]} 49. Qd5 {[%clk 0:00:05]}  Qc8 {[%clk 0:00:17]} 50. h4 {[%clk 0:00:05]}  Ke7 {[%clk 0:00:17]} 51. h5 {[%clk 0:00:05]}  Qc7 {[%clk 0:00:16]} 52. Kf2 {[%clk 0:00:05]}  a5 {[%clk 0:00:11]} 53. g3 {[%clk 0:00:05]}  Kf7 {[%clk 0:00:11]} 54. c4 {[%clk 0:00:05]}  Qb8 {[%clk 0:00:11]} 55. g4 {[%clk 0:00:04]}  Qc7 {[%clk 0:00:11]} 56. Kf3 {[%clk 0:00:03]}  Ke7 {[%clk 0:00:10]} 57. e5 {[%clk 0:00:03]}  Qxe5 {[%clk 0:00:10]} 58. Qxe5 {[%clk 0:00:03]}  fxe5 {[%clk 0:00:11]} 59. Ke4 {[%clk 0:00:04]}  Kd6 {[%clk 0:00:12]} 60. g5 {[%clk 0:00:04]}  Nd4 {[%clk 0:00:12]} 61. h6 {[%clk 0:00:04]}  gxh6 {[%clk 0:00:11]} 62. gxh6 {[%clk 0:00:05]} 1-0


[Site "https://www.chess.com"]